[Event "Chess Festival Groningen 2023 | A"]
[Site "Groningen, Netherlands"]
[Date "2023.12.24"]
[Round "4.30"]
[White "Boer, Alef"]
[Black "Spit, Vincent"]
[Result "1-0"]
[TimeControl "90min/40moves + 30min + 30sec/move"]
[WhiteElo "2017"]
[BlackElo "2076"]

1. e4 {[%clk 01:30:58]} {[%emt 00:00:04]} c5 {[%clk 01:30:49]} {[%emt
00:00:09]} 2. Nf3 {[%clk 01:31:22]} {[%emt 00:00:07]} e6 {[%clk 01:31:05]}
{[%emt 00:00:21]} 3. d4 {[%clk 01:31:40]} {[%emt 00:00:09]} cxd4 {[%clk
01:31:27]} {[%emt 00:00:04]} 4. Nxd4 {[%clk 01:32:05]} {[%emt 00:00:05]} Nc6
{[%clk 01:31:49]} {[%emt 00:00:14]} 5. Be3 {[%clk 01:31:37]} {[%emt 00:00:48]}
Nf6 {[%clk 01:26:53]} {[%emt 00:05:25]} 6. Nxc6 {[%clk 01:24:56]} {[%emt
00:07:12]} bxc6 {[%clk 01:26:09]} {[%emt 00:01:16]} 7. Nd2 {[%clk 01:20:51]}
{[%emt 00:04:33]} d5 {[%clk 01:22:49]} {[%emt 00:03:52]} 8. e5 {[%clk
01:18:16]} {[%emt 00:03:04]} Nd7 {[%clk 01:22:58]} {[%emt 00:00:19]} 9. f4
{[%clk 01:18:36]} {[%emt 00:00:38]} Bc5 {[%clk 01:20:15]} {[%emt 00:02:46]} 10.
Bxc5 {[%clk 01:18:20]} {[%emt 00:01:10]} Nxc5 {[%clk 01:20:34]} {[%emt
00:00:04]} 11. b4 {[%clk 01:11:13]} {[%emt 00:07:19]} Nd7 {[%clk 01:18:54]}
{[%emt 00:02:09]} 12. Nb3 {[%clk 01:09:48]} {[%emt 00:01:57]} O-O {[%clk
01:13:50]} {[%emt 00:05:48]} 13. Qd4 {[%clk 01:09:10]} {[%emt 00:00:53]} f6
{[%clk 01:09:52]} {[%emt 00:04:37]} 14. exf6 {[%clk 01:08:46]} {[%emt
00:00:45]} Qxf6 {[%clk 01:04:34]} {[%emt 00:05:48]} 15. Qxf6 {[%clk 01:06:39]}
{[%emt 00:02:38]} Rxf6 {[%clk 01:04:34]} {[%emt 00:00:28]} 16. g3 {[%clk
01:07:00]} {[%emt 00:00:41]} e5 {[%clk 01:04:17]} {[%emt 00:00:16]} 17. fxe5
{[%clk 01:07:17]} {[%emt 00:00:16]} Nxe5 {[%clk 01:04:11]} {[%emt 00:00:33]} 18.
O-O-O {[%clk 01:07:26]} {[%emt 00:00:19]} Bg4 {[%clk 01:00:42]} {[%emt
00:04:01]} 19. Rd2 {[%clk 00:56:59]} {[%emt 00:10:56]} Bf3 {[%clk 00:55:32]}
{[%emt 00:05:42]} 20. Bg2 {[%clk 00:51:58]} {[%emt 00:05:36]} Raf8 {[%clk
00:53:00]} {[%emt 00:02:55]} 21. Bxf3 {[%clk 00:32:57]} {[%emt 00:19:32]} Rxf3
{[%clk 00:52:20]} {[%emt 00:01:12]} 22. Re2 {[%clk 00:33:21]} {[%emt 00:00:07]}
Nc4 {[%clk 00:47:05]} {[%emt 00:05:41]} 23. Nd4 {[%clk 00:33:06]} {[%emt
00:01:03]} Ra3 {[%clk 00:45:30]} {[%emt 00:01:48]} 24. Kb1 {[%clk 00:28:33]}
{[%emt 00:05:03]} Ra6 {[%clk 00:40:28]} {[%emt 00:05:28]} 25. Re6 {[%clk
00:27:18]} {[%emt 00:01:47]} Rf2 {[%clk 00:35:31]} {[%emt 00:05:26]} 26. Rxc6
{[%clk 00:09:23]} {[%emt 00:18:25]} Na3+ {[%clk 00:34:36]} {[%emt 00:01:27]} 27.
Kb2 {[%clk 00:09:44]} {[%emt 00:00:12]} Rxc6 {[%clk 00:34:21]} {[%emt
00:00:40]} 28. Nxc6 {[%clk 00:10:07]} {[%emt 00:00:14]} Rxc2+ {[%clk 00:24:23]}
{[%emt 00:10:19]} 29. Kxa3 {[%clk 00:10:32]} {[%emt 00:00:20]} Rxc6 {[%clk
00:24:46]} {[%emt 00:00:03]} 30. b5 {[%clk 00:09:18]} {[%emt 00:01:34]} Rb6
{[%clk 00:21:33]} {[%emt 00:03:43]} 31. Kb4 {[%clk 00:09:33]} {[%emt 00:00:15]}
Kf7 {[%clk 00:20:03]} {[%emt 00:02:07]} 32. a4 {[%clk 00:09:54]} {[%emt
00:00:06]} Rh6 {[%clk 00:18:14]} {[%emt 00:02:14]} 33. Rc1 {[%clk 00:07:05]}
{[%emt 00:03:44]} Rxh2 {[%clk 00:18:10]} {[%emt 00:00:09]} 34. Rc7+ {[%clk
00:07:32]} {[%emt 00:00:15]} Ke6 {[%clk 00:17:49]} {[%emt 00:00:46]} 35. Rxg7
{[%clk 00:07:19]} {[%emt 00:00:40]} d4 {[%clk 00:13:06]} {[%emt 00:05:10]} 36.
Kc4 {[%clk 00:07:24]} {[%emt 00:00:28]} Rd2 {[%clk 00:12:51]} {[%emt 00:00:43]}
37. Rxh7 {[%clk 00:07:18]} {[%emt 00:00:36]} d3 {[%clk 00:11:33]} {[%emt
00:01:49]} 38. Rxa7 {[%clk 00:06:53]} {[%emt 00:00:52]} Rg2 {[%clk 00:09:59]}
{[%emt 00:02:04]} 39. Kxd3 {[%clk 00:07:16]} {[%emt 00:00:27]} Rxg3+ {[%clk
00:10:21]} 40. Kc4 {[%clk 00:07:41]} {[%emt 00:00:10]} Kd6 {[%clk 00:10:17]}
{[%emt 00:00:18]} 41. Kb4 {[%clk 00:07:38]} {[%emt 00:00:37]} Rg4+ {[%clk
00:09:50]} {[%emt 00:00:52]} 42. Ka5 {[%clk 00:08:01]} {[%emt 00:00:10]} Rc4
{[%clk 00:09:38]} {[%emt 00:00:38]} 43. Kb6 {[%clk 00:07:58]} {[%emt 00:00:34]}
Rc8 {[%clk 00:09:48]} {[%emt 00:00:22]} 44. a5 {[%clk 00:07:43]} {[%emt
00:00:46]} Rb8+ {[%clk 00:09:42]} {[%emt 00:00:33]} 45. Rb7 {[%clk 00:07:57]}
{[%emt 00:00:38]} Kd5 {[%emt 00:00:41]} 1-0

[Event "Chess Festival Groningen 2023 | A"]
[Site "Groningen, Netherlands"]
[Date "2023.12.24"]
[Round "4.31"]
[White "Vijayakumar, Rishi"]
[Black "Bakija, Alan"]
[Result "1/2-1/2"]
[TimeControl "90min/40moves + 30min + 30sec/move"]
[WhiteElo "2104"]
[BlackElo "2010"]

1. d4 {[%clk 00:55:18]} d5 {[%clk 00:55:14]} 2. c4 {[%clk 00:55:18]} c6 {[%clk
00:55:14]} 3. cxd5 {[%clk 00:55:18]} cxd5 {[%clk 00:55:14]} 4. Bg5 {[%clk
00:55:18]} f6 {[%clk 00:55:14]} 5. Bd2 {[%clk 00:55:18]} e5 {[%clk 00:55:14]} 6.
dxe5 {[%clk 00:55:18]} Bc5 {[%clk 00:55:14]} 7. Qc2 {[%clk 00:55:18]} Bb6
{[%clk 00:55:14]} 8. Nf3 {[%clk 00:55:18]} Nc6 {[%clk 00:55:14]} 9. e4 {[%clk
00:55:18]} Be6 {[%clk 00:55:14]} 10. Nc3 {[%clk 00:55:18]} d4 {[%clk 00:55:14]}
11. Nb5 {[%clk 00:55:18]} Nxe5 {[%clk 00:55:14]} 12. Nxe5 {[%clk 00:55:18]}
fxe5 {[%clk 00:55:14]} 13. Bb4 {[%clk 00:55:18]} Ba5 {[%clk 00:55:14]} 14. Qa4
{[%clk 00:55:18]} Bxb4+ {[%clk 00:55:14]} 15. Qxb4 {[%clk 00:55:18]} Qe7 {[%clk
00:55:14]} 16. Nd6+ {[%clk 00:55:18]} Kf8 {[%clk 00:55:14]} 17. Qxb7 {[%clk
00:55:18]} Qxb7 {[%clk 00:55:14]} 18. Nxb7 {[%clk 00:55:18]} Rb8 {[%clk
00:55:14]} 19. Nc5 {[%clk 00:55:18]} Ke7 {[%clk 00:55:14]} 20. Nxe6 {[%clk
00:55:18]} Kxe6 {[%clk 00:55:14]} 21. Bc4+ {[%clk 00:55:18]} Kd6 {[%clk
00:55:14]} 22. Bxg8 {[%clk 00:55:18]} Rhxg8 {[%clk 00:55:14]} 23. b3 {[%clk
00:55:18]} Rgc8 {[%clk 00:55:14]} 24. Kd2 {[%clk 00:55:18]} a5 {[%clk
00:55:14]} 25. Rhc1 {[%clk 00:55:18]} Rxc1 {[%clk 00:55:14]} 26. Rxc1 {[%clk
00:55:18]} a4 {[%clk 00:55:14]} 27. Kc2 {[%clk 00:55:18]} g5 {[%clk 00:55:14]}
28. bxa4 {[%clk 00:55:18]} Rb4 {[%clk 00:55:14]} 29. a3 {[%clk 00:55:18]} Rxa4
{[%clk 00:55:14]} 30. Kb3 {[%clk 00:55:18]} Ra8 {[%clk 00:55:14]} 31. a4 {[%clk
00:55:18]} g4 {[%clk 00:55:14]} 32. Rc2 {[%clk 00:55:18]} h5 {[%clk 00:55:14]}
33. Kb4 {[%clk 00:55:18]} Rb8+ {[%clk 00:55:14]} 34. Ka3 {[%clk 00:55:18]} Ra8
{[%clk 00:55:14]} 35. Rb2 {[%clk 00:55:18]} Kc5 {[%clk 00:55:14]} 36. Rc2+
{[%clk 00:55:18]} Kd6 {[%clk 00:55:14]} 37. h3 {[%clk 00:55:18]} gxh3 {[%clk
00:55:14]} 38. gxh3 {[%clk 00:55:18]} h4 {[%clk 00:55:14]} 39. Rb2 {[%clk
00:55:18]} Kc5 {[%clk 00:55:14]} 40. Rc2+ {[%clk 00:55:18]} Kb6 {[%clk
00:55:14]} 41. Kb4 {[%clk 00:55:18]} Rd8 {[%clk 00:55:14]} 42. a5+ {[%clk
00:55:18]} Ka6 {[%clk 00:55:14]} 43. Rd2 {[%clk 00:55:18]} Rc8 {[%clk
00:55:14]} 44. f4 {[%clk 00:55:18]} exf4 {[%clk 00:55:14]} 45. Rxd4 {[%clk
00:55:18]} Rf8 {[%clk 00:55:14]} 46. Rd6+ {[%clk 00:55:18]} Ka7 {[%clk
00:55:14]} 47. Rd1 {[%clk 00:55:18]} Re8 {[%clk 00:55:14]} 48. Re1 {[%clk
00:55:18]} f3 {[%clk 00:55:14]} 49. Kc5 {[%clk 00:55:18]} f2 {[%clk 00:55:14]}
50. Rf1 {[%clk 00:55:18]} Rxe4 {[%clk 00:55:14]} 51. Rxf2 {[%clk 00:55:18]} Re3
{[%clk 00:55:14]} 52. Rh2 {[%clk 00:55:18]} Ka6 {[%clk 00:55:14]} 53. Kd4
{[%clk 00:55:18]} Rg3 {[%clk 00:55:14]} 54. Kc5 {[%clk 00:55:18]} Rc3+ {[%clk
00:55:14]} 55. Kd4 {[%clk 00:55:18]} Rg3 {[%clk 00:55:14]} 56. Kc5 {[%clk
00:55:18]} Rc3+ {[%clk 00:55:14]} 57. Kb4 {[%clk 00:55:18]} Rf3 {[%clk
00:55:14]} 58. Rg2 {[%clk 00:55:18]} Rxh3 {[%clk 00:55:14]} 59. Rg6+ {[%clk
00:55:18]} Ka7 {[%clk 00:55:14]} 60. Rh6 {[%clk 00:55:18]} Rh1 {[%clk
00:55:14]} 61. Kb5 {[%clk 00:55:18]} Rb1+ {[%clk 00:55:14]} 62. Ka4 {[%clk
00:55:18]} Ra1+ {[%clk 00:55:14]} 63. Kb4 {[%clk 00:55:18]} Rb1+ {[%clk
00:55:14]} 64. Kc3 {[%clk 00:55:18]} Rh1 {[%clk 00:55:14]} 65. Kd2 {[%clk
00:55:18]} h3 {[%clk 00:55:14]} 66. Ke2 {[%clk 00:55:18]} h2 {[%clk 00:55:14]}
67. Kf2 {[%clk 00:55:18]} Ra1 {[%clk 00:55:14]} 68. Rh7+ {[%clk 00:55:18]} Ka6
{[%clk 00:55:14]} 69. Rh6+ {[%clk 00:55:18]} Ka7 {[%clk 00:55:14]} 70. Rxh2
{[%clk 00:55:18]} Ra2+ {[%clk 00:55:14]} 1/2-1/2

[Event "Chess Festival Groningen 2023 | A"]
[Site "Groningen, Netherlands"]
[Date "2023.12.24"]
[Round "4.32"]
[White "Arnold, Rhys"]
[Black "Mohtaat, Homayoun"]
[Result "1-0"]
[TimeControl "90min/40moves + 30min + 30sec/move"]
[BlackFideId "11701552"]
[WhiteElo "2053"]
[BlackElo "2013"]

1. e4 c5 {[%clk 00:00:00]} 2. Nf3 Nc6 {[%clk 00:00:00]} 3. d4 cxd4 {[%clk
00:00:00]} 4. Nxd4 d6 {[%clk 00:00:00]} 5. c4 Nf6 {[%clk 00:00:00]} 6. Nc3 g6
{[%clk 00:00:00]} 7. Be2 Bg7 {[%clk 00:00:00]} 8. Be3 a6 {[%clk 00:00:00]} 9.
O-O O-O {[%clk 00:00:00]} 10. Rc1 h5 {[%clk 00:00:00]} 11. h3 Bd7 {[%clk
00:00:00]} 12. Qd2 Rc8 {[%clk 00:00:00]} 13. f4 Nxd4 {[%clk 00:00:00]} 14. Bxd4
Bc6 {[%clk 00:00:00]} 15. Qe3 Kh7 {[%clk 00:00:00]} 16. Rcd1 Bh6 {[%clk
00:00:00]} 17. b4 b5 {[%clk 00:00:00]} 18. cxb5 axb5 {[%clk 00:00:00]} 19. Bxb5
Bxb5 {[%clk 00:00:00]} 20. Nxb5 Nd7 {[%clk 00:00:00]} 21. Qb3 f6 {[%clk
00:00:00]} 22. a4 Rc6 {[%clk 00:00:00]} 23. f5 Qe8 {[%clk 00:00:00]} 24. Nc3
gxf5 {[%clk 00:00:00]} 25. exf5 Ne5 {[%clk 00:00:00]} 26. b5 Rc8 {[%clk
00:00:00]} 27. Bxe5 Be3+ {[%clk 00:00:00]} 28. Kh1 dxe5 {[%clk 00:00:00]} 29.
Nd5 Bd4 {[%clk 00:00:00]} 30. Rfe1 Qf7 {[%clk 00:00:00]} 31. Rxd4 Rfd8 {[%clk
00:00:00]} 32. Rdd1 Rd6 {[%clk 00:00:00]} 33. b6 1-0

[Event "Chess Festival Groningen 2023 | A"]
[Site "Groningen, Netherlands"]
[Date "2023.12.24"]
[Round "4.33"]
[White "Goudriaan, Rafael"]
[Black "Groenewoud, Joel"]
[Result "1-0"]
[TimeControl "90min/40moves + 30min + 30sec/move"]
[WhiteElo "2039"]
[BlackElo "1997"]

1. e4 {[%clk 00:55:18]} c6 {[%clk 00:55:18]} 2. Nf3 {[%clk 00:55:18]} d5 {[%clk
00:55:18]} 3. Nc3 {[%clk 00:55:18]} dxe4 {[%clk 00:55:18]} 4. Nxe4 {[%clk
00:55:18]} Nf6 {[%clk 00:55:18]} 5. Qe2 {[%clk 00:55:18]} Nxe4 {[%clk
00:55:18]} 6. Qxe4 {[%clk 00:55:18]} Be6 {[%clk 00:55:18]} 7. b3 {[%clk
00:55:18]} Nd7 {[%clk 00:55:18]} 8. Qf4 {[%clk 00:55:18]} Nf6 {[%clk 00:55:18]}
9. Bb2 {[%clk 00:55:18]} g6 {[%clk 00:55:18]} 10. Ng5 {[%clk 00:55:18]} Bf5
{[%clk 00:55:18]} 11. Bc4 {[%clk 00:55:18]} e6 {[%clk 00:55:18]} 12. g4 {[%clk
00:55:18]} Nxg4 {[%clk 00:55:18]} 13. Bxh8 {[%clk 00:55:18]} Bd6 {[%clk
00:55:18]} 14. Qd4 {[%clk 00:55:18]} c5 {[%clk 00:55:18]} 15. Bb5+ {[%clk
00:55:18]} Ke7 {[%clk 00:55:18]} 16. Qg7 {[%clk 00:55:18]} Bf4 {[%clk
00:55:18]} 17. Qxf7+ {[%clk 00:55:18]} Kd6 {[%clk 00:55:18]} 18. Ne4+ {[%clk
00:55:18]} 1-0

[Event "Chess Festival Groningen 2023 | A"]
[Site "Groningen, Netherlands"]
[Date "2023.12.26"]
[Round "5.1"]
[White "Kazakouski, Valery"]
[Black "Stremavicius, Titas"]
[Result "1-0"]
[TimeControl "90min/40moves + 30min + 30sec/move"]
[WhiteElo "2586"]
[BlackElo "2550"]

1. e4 {[%clk 01:30:56]} {[%emt 00:00:03]} c6 {[%clk 01:30:54]} {[%emt
00:00:06]} 2. Nf3 {[%clk 01:26:43]} {[%emt 00:04:43]} d5 {[%clk 01:31:18]}
{[%emt 00:00:06]} 3. Nc3 {[%clk 01:26:55]} {[%emt 00:00:19]} dxe4 {[%clk
01:31:40]} {[%emt 00:00:07]} 4. Nxe4 {[%clk 01:27:19]} {[%emt 00:00:06]} Nf6
{[%clk 01:31:56]} {[%emt 00:00:14]} 5. Nxf6+ {[%clk 01:26:50]} {[%emt
00:01:00]} exf6 {[%clk 01:32:18]} {[%emt 00:00:07]} 6. Bc4 {[%clk 01:25:51]}
{[%emt 00:01:29]} Bd6 {[%clk 01:32:40]} {[%emt 00:00:08]} 7. Qe2+ {[%clk
01:22:57]} {[%emt 00:03:25]} Qe7 {[%clk 01:29:02]} {[%emt 00:04:07]} 8. O-O
{[%clk 01:19:43]} {[%emt 00:03:43]} Qxe2 {[%clk 01:25:02]} {[%emt 00:04:31]} 9.
Bxe2 {[%clk 01:20:06]} {[%emt 00:00:07]} O-O {[%clk 01:25:24]} {[%emt
00:00:08]} 10. d4 {[%clk 01:19:21]} {[%emt 00:01:16]} Re8 {[%clk 01:24:56]}
{[%emt 00:00:57]} 11. Bd3 {[%clk 01:16:39]} {[%emt 00:03:12]} Be6 {[%clk
01:22:37]} {[%emt 00:02:47]} 12. Nd2 {[%clk 01:13:09]} {[%emt 00:04:02]} Bc7
{[%clk 01:17:24]} {[%emt 00:05:42]} 13. Ne4 {[%clk 00:58:37]} {[%emt 00:15:03]}
Nd7 {[%clk 01:14:37]} {[%emt 00:03:17]} 14. Bd2 {[%clk 00:51:24]} {[%emt
00:07:43]} Rad8 {[%clk 01:10:03]} {[%emt 00:05:03]} 15. Rfe1 {[%clk 00:46:46]}
{[%emt 00:05:08]} Nf8 {[%clk 01:01:40]} {[%emt 00:08:53]} 16. c3 {[%clk
00:39:50]} {[%emt 00:07:26]} Bc8 {[%clk 00:57:50]} {[%emt 00:04:20]} 17. Rad1
{[%clk 00:35:50]} {[%emt 00:04:30]} Ne6 {[%clk 00:57:42]} {[%emt 00:00:39]} 18.
Bc4 {[%clk 00:35:13]} {[%emt 00:01:07]} h6 {[%clk 00:52:47]} {[%emt 00:05:24]}
19. Ng3 {[%clk 00:32:57]} {[%emt 00:02:46]} Nf4 {[%clk 00:48:33]} {[%emt
00:04:44]} 20. Ne2 {[%clk 00:31:05]} {[%emt 00:02:22]} Nd5 {[%clk 00:46:57]}
{[%emt 00:02:06]} 21. Bd3 {[%clk 00:30:54]} {[%emt 00:00:42]} Be6 {[%clk
00:45:52]} {[%emt 00:01:35]} 22. c4 {[%clk 00:26:23]} {[%emt 00:05:01]} Ne7
{[%clk 00:45:54]} {[%emt 00:00:27]} 23. Bc3 {[%clk 00:23:52]} {[%emt 00:03:01]}
Rd7 {[%clk 00:36:24]} {[%emt 00:10:00]} 24. b3 {[%clk 00:22:33]} {[%emt
00:01:49]} Red8 {[%clk 00:36:03]} {[%emt 00:00:49]} 25. a4 {[%clk 00:18:43]}
{[%emt 00:04:22]} Nf5 {[%clk 00:28:30]} {[%emt 00:08:03]} 26. Rd2 {[%clk
00:17:17]} {[%emt 00:01:56]} Nh4 {[%clk 00:20:56]} {[%emt 00:08:03]} 27. Red1
{[%clk 00:14:24]} {[%emt 00:03:23]} Bf5 {[%clk 00:21:11]} {[%emt 00:00:16]} 28.
Kf1 {[%clk 00:13:08]} {[%emt 00:01:45]} a6 {[%clk 00:20:23]} {[%emt 00:01:19]}
29. a5 {[%clk 00:11:26]} {[%emt 00:02:11]} h5 {[%clk 00:19:04]} {[%emt
00:01:49]} 30. Ng3 {[%clk 00:07:35]} {[%emt 00:04:21]} Bxg3 {[%clk 00:18:10]}
{[%emt 00:01:24]} 31. hxg3 {[%clk 00:07:51]} {[%emt 00:00:14]} Bxd3+ {[%clk
00:18:36]} {[%emt 00:00:04]} 32. Rxd3 {[%clk 00:08:14]} {[%emt 00:00:07]} Nf5
{[%clk 00:19:01]} {[%emt 00:00:05]} 33. R1d2 {[%clk 00:05:25]} {[%emt
00:03:20]} Kh7 {[%clk 00:15:29]} {[%emt 00:04:02]} 34. Ke2 {[%clk 00:05:14]}
{[%emt 00:00:41]} Re8+ {[%clk 00:13:23]} {[%emt 00:02:36]} 35. Kd1 {[%clk
00:05:35]} {[%emt 00:00:08]} Nd6 {[%clk 00:13:37]} {[%emt 00:00:17]} 36. Re2
{[%clk 00:03:32]} {[%emt 00:02:33]} Re6 {[%clk 00:04:38]} {[%emt 00:09:28]} 37.
d5 {[%clk 00:01:35]} {[%emt 00:02:28]} cxd5 {[%clk 00:04:57]} {[%emt 00:00:11]}
38. Rxd5 {[%clk 00:00:43]} {[%emt 00:01:21]} Nb5 {[%clk 00:04:57]} {[%emt
00:00:30]} 39. Bb4 {[%clk 00:00:33]} {[%emt 00:00:40]} Rde7 {[%clk 00:00:31]}
{[%emt 00:04:56]} 40. Rxe6 {[%clk 00:00:36]} {[%emt 00:00:26]} 1-0

[Event "Chess Festival Groningen 2023 | A"]
[Site "Groningen, Netherlands"]
[Date "2023.12.26"]
[Round "5.2"]
[White "Romanov, Evgeny"]
[Black "Kobo, Ori"]
[Result "1-0"]
[TimeControl "90min/40moves + 30min + 30sec/move"]
[WhiteElo "2561"]
[BlackElo "2541"]

1. e4 {[%clk 01:30:44]} {[%emt 00:00:15]} e5 {[%clk 01:30:40]} {[%emt
00:00:20]} 2. Nf3 {[%clk 01:31:04]} {[%emt 00:00:10]} Nc6 {[%clk 01:30:50]}
{[%emt 00:00:21]} 3. Bb5 {[%clk 01:31:25]} {[%emt 00:00:09]} a6 {[%clk
01:30:53]} {[%emt 00:00:27]} 4. Ba4 {[%clk 01:31:48]} {[%emt 00:00:07]} Nf6
{[%clk 01:30:51]} {[%emt 00:00:31]} 5. O-O {[%clk 01:32:09]} {[%emt 00:00:08]}
d6 {[%clk 01:30:58]} {[%emt 00:00:24]} 6. Re1 {[%clk 01:29:55]} {[%emt
00:02:44]} Bd7 {[%clk 01:30:58]} {[%emt 00:00:30]} 7. c4 {[%clk 01:26:18]}
{[%emt 00:04:07]} Bg4 {[%clk 01:29:47]} {[%emt 00:01:41]} 8. h3 {[%clk
01:25:40]} {[%emt 00:01:08]} Bxf3 {[%clk 01:30:00]} {[%emt 00:00:18]} 9. Qxf3
{[%clk 01:25:34]} {[%emt 00:00:35]} Nd7 {[%clk 01:29:48]} {[%emt 00:00:41]} 10.
Nc3 {[%clk 01:17:58]} {[%emt 00:08:06]} Nd4 {[%clk 01:26:11]} {[%emt 00:04:07]}
11. Qd1 {[%clk 01:15:21]} {[%emt 00:03:08]} Be7 {[%clk 01:19:33]} {[%emt
00:07:07]} 12. Bxd7+ {[%clk 00:59:31]} {[%emt 00:16:21]} Qxd7 {[%clk 01:19:46]}
{[%emt 00:00:15]} 13. d3 {[%clk 00:59:59]} {[%emt 00:00:04]} c6 {[%clk
01:06:08]} {[%emt 00:14:07]} 14. Be3 {[%clk 00:59:14]} {[%emt 00:01:15]} Ne6
{[%clk 01:06:01]} {[%emt 00:00:37]} 15. b4 {[%clk 00:54:36]} {[%emt 00:05:09]}
O-O {[%clk 01:00:19]} {[%emt 00:06:10]} 16. Qg4 {[%clk 00:50:42]} {[%emt
00:04:25]} Kh8 {[%clk 00:49:41]} {[%emt 00:11:08]} 17. d4 {[%clk 00:27:52]}
{[%emt 00:23:20]} f5 {[%clk 00:41:36]} {[%emt 00:08:35]} 18. exf5 {[%clk
00:28:15]} {[%emt 00:00:07]} Nxd4 {[%clk 00:41:53]} {[%emt 00:00:12]} 19. Bxd4
{[%clk 00:28:29]} {[%emt 00:00:17]} exd4 {[%clk 00:42:20]} {[%emt 00:00:03]} 20.
Qxd4 {[%clk 00:27:42]} {[%emt 00:01:17]} Bf6 {[%clk 00:40:23]} {[%emt
00:02:27]} 21. Qd3 {[%clk 00:27:52]} {[%emt 00:00:20]} Bxc3 {[%clk 00:40:13]}
{[%emt 00:00:40]} 22. Qxc3 {[%clk 00:28:20]} {[%emt 00:00:02]} Qxf5 {[%clk
00:37:45]} {[%emt 00:02:58]} 23. Qg3 {[%clk 00:27:25]} {[%emt 00:01:25]} Qf6
{[%clk 00:27:42]} {[%emt 00:10:33]} 24. Rad1 {[%clk 00:27:32]} {[%emt
00:00:24]} Rad8 {[%clk 00:24:54]} {[%emt 00:03:17]} 25. Rd3 {[%clk 00:27:43]}
{[%emt 00:00:19]} Rd7 {[%clk 00:21:22]} {[%emt 00:04:01]} 26. Rf3 {[%clk
00:21:56]} {[%emt 00:06:18]} Qd8 {[%clk 00:21:48]} {[%emt 00:00:04]} 27. Rxf8+
{[%clk 00:21:55]} Qxf8 {[%clk 00:22:16]} {[%emt 00:00:33]} 28. Re6 {[%clk
00:22:09]} {[%emt 00:00:16]} Rd8 {[%clk 00:17:41]} {[%emt 00:05:05]} 29. Qe3
{[%clk 00:18:55]} {[%emt 00:03:44]} d5 {[%clk 00:13:34]} {[%emt 00:04:37]} 30.
c5 {[%clk 00:18:38]} {[%emt 00:00:47]} d4 {[%clk 00:10:17]} {[%emt 00:03:47]}
31. Qe5 {[%clk 00:15:31]} {[%emt 00:03:37]} d3 {[%clk 00:03:49]} {[%emt
00:06:59]} 32. Rd6 {[%clk 00:14:47]} {[%emt 00:01:14]} Re8 {[%clk 00:01:24]}
{[%emt 00:02:54]} 33. Qd4 {[%clk 00:15:03]} {[%emt 00:00:14]} Re1+ {[%clk
00:00:36]} {[%emt 00:01:19]} 34. Kh2 {[%clk 00:15:30]} {[%emt 00:00:02]} Re8
{[%clk 00:00:47]} {[%emt 00:00:20]} 35. a3 {[%clk 00:09:55]} {[%emt 00:06:05]}
Kg8 {[%clk 00:00:54]} {[%emt 00:00:23]} 36. Rd7 {[%clk 00:07:15]} {[%emt
00:03:09]} h6 {[%clk 00:00:49]} {[%emt 00:00:36]} 37. Rxb7 {[%clk 00:06:16]}
{[%emt 00:01:28]} Kh8 {[%clk 00:00:31]} {[%emt 00:00:48]} 38. Rd7 {[%clk
00:05:58]} {[%emt 00:00:47]} 1-0